Cogmind - Beta 11.1 @@@ ROGUE MODE // 2022.05.30 @ 21:29:38 Player: btmk16 Result: Destroyed by D-53 Grenadier with Mini Grenade Launcher Performance ------------- Evolutions (0) 0 Regions Visited (2) 400 Robots Destroyed (25) 125 Value Destroyed (480) 480 Prototype IDs (0) 0 Alien Tech Used (0) 0 Bonus (0) 0 TOTAL SCORE: 1005 Bonus ------- None Cogmind --------- Core Integrity 0/250 Matter 197/300 Energy 275/275 System Corruption 12% Temperature Cool (0) Movement Rolling (130) Ox2 Location -10/Mines Parts ------- > --- POWER (1) -------- Light Ion Engine > --- PROPULSION (2) --- Compact Wheel Compact Wheel > --- UTILITY (2) ------ Huge Storage Unit Medium Battery > --- WEAPON (2) ------- Assault Rifle > --- INVENTORY (25) --- Light Treads Light Treads Aluminum Leg Aluminum Leg Wheel Compact Wheel Compact Wheel Large Storage Unit Large Matter Pod (150) High-capacity Matter Pod (29) High-capacity Matter Pod (0) High-capacity Matter Pod (0) ECM Suite EM Pulse Gun Mini Grenade Launcher Mini Grenade Launcher Mini Grenade Launcher Mini Grenade Launcher Mining Laser Peak State ------------ > --- POWER ------------ Light Ion Engine > --- PROPULSION ------- Compact Wheel Compact Wheel > --- UTILITY ---------- Huge Storage Unit Medium Battery > --- WEAPON ----------- Mini Grenade Launcher Mini Grenade Launcher > --- INVENTORY -------- Light Treads Light Treads Aluminum Leg Aluminum Leg Wheel Compact Wheel Compact Wheel Large Storage Unit Large Matter Pod High-capacity Matter Pod High-capacity Matter Pod High-capacity Matter Pod ECM Suite EM Pulse Gun Small Laser Assault Rifle Mini Grenade Launcher Mini Grenade Launcher Mining Laser [Rating: 11] Favorites ----------- Power Ion Engine Engine Ion Engine Propulsion Compact Wheel Treads Light Treads Leg Aluminum Leg Wheel Compact Wheel Utility Huge Storage Unit Device Tractor Beam Storage Huge Storage Unit Weapon Assault Rifle Energy Gun Small Laser Ballistic Gun Assault Rifle Launcher Mini Grenade Launcher Impact Weapon Hammer Special Melee Weapon Datajack Build | -11 -10 -10 ------- Run | Scr Mat Min Slots Evolved . | . . . Power . | . . . Propulsion . | . . . Utility . | . . . Weapon . | . . . Parts Attached 28 | . 16 12 Power 2 | . 1 1 Engine 2 | . 1 1 Core . | . . . Reactor . | . . . Propulsion 10 | . 6 4 Treads 4 | . 2 2 Leg 1 | . 1 . Wheel 5 | . 3 2 Hover . | . . . Flight . | . . . Utility 5 | . 4 1 Device 1 | . 1 . Storage 4 | . 3 1 Processor . | . . . Hackware . | . . . Protection . | . . . Artifact . | . . . Weapon 11 | . 5 6 Energy Gun 2 | . 1 1 Energy Cannon . | . . . Ballistic Gun 1 | . . 1 Ballistic Cannon . | . . . Launcher 4 | . 2 2 Special Weapon . | . . . Impact Weapon 2 | . 1 1 Slashing Weapon . | . . . Piercing Weapon . | . . . Special Melee Weapon 2 | . 1 1 Unidentified Prototypes . | . . . Parts Lost 8 | . 1 7 Power 1 | . . 1 Propulsion 2 | . . 2 Utility 2 | . 1 1 Weapon 3 | . . 3 Highest Loss Streak 5 | . 1 5 To Critical Strikes . | . . . Average Slot Usage (%) 90 | . 92 83 Engine 13 | . 14 13 Treads 2 | . 2 . Leg 11 | . 13 . Wheel 14 | . 12 26 Device 2 | . 2 . Storage 17 | . 18 16 Energy Gun 8 | . 10 . Ballistic Gun 12 | . 14 2 Launcher 1 | . . 5 Impact Weapon 4 | . 3 8 Special Melee Weapon 1 | . . 9 Naked Turns . | . . . Heaviest Build 92 | 11 92 88 Greatest Support 40 | 20 40 32 Greatest Overweight (x) 3 | . 3 2 Average Overweight (x) 1 | . 1 2 Largest Inventory Capacity 25 | . 25 25 Average Capacity 19 | . 18 25 Most Carried 25 | . 25 25 Average Carried 16 | . 15 23 Final Capacity 25 | 8 25 25 Final Carried 25 | 6 25 19 Class Distribution -------------------- 100% | Mutant Dominant Class ---------------- Mutant | -10/Materials Mutant | -10/Mines Resources | -11 -10 -10 ----------- Run | Scr Mat Min Matter Collected 851 | 200 590 61 Remotely 96 | . 96 . Salvage Created 760 | . 713 47 Parts 37 | . 35 2 Haulers Intercepted 2 | . 2 . Recyclers Shooed 2 | . 2 . Parts Field Recycled . | . . . Retrieved Matter . | . . . Parts Self-Destructed . | . . . Prevented . | . . . Kills | -11 -10 -10 ------- Run | Scr Mat Min Combat Hostiles Destroyed 15 | . 10 5 Guns 6 | . 6 . AOE 9 | . 4 5 Classes Destroyed 9 | . 7 2 Worker 3 | . 3 . Builder 1 | . 1 . Tunneler 3 | . 2 1 Hauler 2 | . 2 . Recycler 2 | . 2 . Operator 1 | . 1 . Swarmer 3 | . . 3 Grunt 10 | . 10 . Assembled 2 | . . 2 Best Kill Streak 6 | . 6 3 Combat Bots Only 4 | . 4 3 Max Kills in Single Turn 2 | . 2 2 Gunslinging 1 | . 1 . Exploded 2 | . 1 2 Melee . | . . . Uniques/NPCs Destroyed . | . . . Combat | -11 -10 -10 -------- Run | Scr Mat Min Damage Taken 854 | . 400 454 Core 260 | . 127 133 Absorbed by Shields . | . . . Core Remaining (%) 100 | 100 . . Volleys Fired 45 | . 38 7 Largest 2 | . 2 2 Hottest 60 | . 60 60 Shots Fired 77 | . 69 8 Gun 67 | . 64 3 Cannon . | . . . Launcher 10 | . 5 5 Special . | . . . Kinetic 35 | . 33 2 Thermal 32 | . 31 1 Explosive 10 | . 5 5 Electromagnetic . | . . . Robot Hit Streak 7 | . 7 1 Robot Miss Streak 6 | . 6 3 Penetration Max . | . . . Secondary Targets 1 | . 1 . Max Gunslinging Chain 1 | . 1 . Shots Hit Robots 49 | . 42 7 Core Hits 40 | . 32 8 Critical Kills . | . . . Critical Parts Destroyed 2 | . 2 . Critical Strikes 2 | . 2 . Smash 2 | . 2 . Melee Attacks 24 | . 15 9 Impact 21 | . 14 7 Slashing . | . . . Piercing . | . . . Sneak Attacks 10 | . 7 3 Combat Hostiles . | . . . Follow-up Attacks . | . . . Damage Inflicted 1739 | . 1209 530 Guns 417 | . 407 10 Cannons . | . . . Explosions 851 | . 472 379 Melee 467 | . 326 141 Ramming 4 | . 4 . Kinetic 246 | . 236 10 Thermal 171 | . 171 . Explosive 794 | . 415 379 Electromagnetic 57 | . 57 . Impact 467 | . 326 141 Slashing . | . . . Piercing . | . . . Highest Corruption 12 | . . 12 Average Corruption 11 | . . 11 Corruption Purged . | . . . Corruption Blocked . | . . . Effects 3 | . . 3 Message Errors 2 | . . 2 Data Loss (major) 1 | . . 1 Overload Shots . | . . . Overflow Damage 200 | . 147 53 Projectiles . | . . . Explosions 38 | . 1 37 Melee 162 | . 146 16 Knockbacks 1 | . . 1 Impact 1 | . . 1 Kinetic . | . . . Secondary . | . . . Self-Inflicted Damage 135 | . . 135 Shots 4 | . . 4 Rammed . | . . . Targets Rammed 1 | . 1 . Kicked 1 | . 1 . Crushed . | . . . Highest Temperature 48 | . 48 . Average Temperature 19 | . 19 . Received Heat Transfer 195 | . 195 . Siege Activations . | . . . Robots Corrupted . | . . . Combat Hostiles . | . . . Parts Fried 9 | . 6 3 Impact Corruptions 9 | . 7 2 Robots Melted . | . . . Combat Hostiles . | . . . Parts Melted . | . . . Heat Transferred 375 | . 375 . Parts Sabotaged . | . . . Parts Stolen . | . . . Parts Stripped . | . . . Power Chain Reactions . | . . . Missiles Intercepted . | . . . Alert | -11 -10 -10 ------- Run | Scr Mat Min Peak Influence 184 | . 184 161 Initial 33 | . . 33 Average 80 | . 68 154 Maximum Alert Level . | . . . Low Security (%) 100 | . 100 100 Level 1 . | . . . Level 2 . | . . . Level 3 . | . . . Level 4 . | . . . Level 5 . | . . . High Security . | . . . Max Security . | . . . Squads Dispatched 3 | . 3 . Investigation 1 | . 1 . Extermination . | . . . Reinforcement 2 | . 2 . Assault . | . . . Garrison . | . . . Intercept . | . . . Searches Triggered . | . . . Construction Impeded . | . . . Haulers Reinforced . | . . . Active Scanning Responses . | . . . Cargo Convoy Interrupts . | . . . Stealth | -11 -10 -10 --------- Run | Scr Mat Min Distress Signals 1 | . 1 . Communications Jammed . | . . . Distress Signals . | . . . Times Spotted 28 | . 23 5 Peak Tracking Total 5 | . 5 2 Tactical Retreats . | . . . Traps | -11 -10 -10 ------- Run | Scr Mat Min Traps Triggered 3 | . 3 . Indirectly . | . . . Trap Hack Attempts . | . . . Triggered . | . . . Disarmed . | . . . Reprogrammed . | . . . Reused . | . . . Traps Extracted . | . . . Installed . | . . . Triggered . | . . . Machines | -11 -10 -10 ---------- Run | Scr Mat Min Machines Disabled 1 | . 1 . Max in Single Turn 1 | . 1 . Machines Sabotaged . | . . . Garrisons Compromised . | . . . Overloaded Fab Kills . | . . . Hacking | -11 -10 -10 --------- Run | Scr Mat Min Machines Accessed 6 | . 6 . Terminals 6 | . 6 . Fabricators . | . . . Repair Stations . | . . . Recycling Units . | . . . Scanalyzers . | . . . Garrison Access . | . . . Total Hacks 15 | . 15 . Successful 7 | . 7 . Failed 7 | . 7 . Catastrophic . | . . . Database Lockouts 1 | . 1 . Manual 8 | . 8 . Terminals 15 | . 15 . Fabricators . | . . . Repair Stations . | . . . Recycling Units . | . . . Scanalyzers . | . . . Garrison Access . | . . . Terminal Hacks 6 | . 6 . Robot Analysis 2 | . 2 . Terminal Index 1 | . 1 . Locate Traps 1 | . 1 . Recall Investigation 1 | . 1 . Hauler Manifests 1 | . 1 . Fabricator Hacks . | . . . Repair Station Hacks . | . . . Recycling Unit Hacks . | . . . Scanalyzer . | . . . Garrison Access Hacks . | . . . Unauthorized Hacks 1 | . 1 . Terminals 1 | . 1 . Botnet 1 | . 1 . Fabricators . | . . . Repair Stations . | . . . Recycling Units . | . . . Scanalyzers . | . . . Garrison Access . | . . . Data Cores Recovered . | . . . Used . | . . . Hacking Detections 4 | . 4 . Full Trace Events . | . . . Feedback Events . | . . . Feedback Blocked . | . . . Robot Schematics Acquired . | . . . Robots Built . | . . . Authchips . | . . . Time . | . . . Total Robot Build Rating . | . . . Part Schematics Acquired . | . . . Parts Built . | . . . Authchips . | . . . Time . | . . . Total Part Build Rating . | . . . Parts Repaired . | . . . Time . | . . . Parts Recycled . | . . . Recycled Matter . | . . . Retrieved Matter . | . . . Retrieved Components . | . . . Parts Scanalyzed . | . . . Part Schematics Acquired . | . . . Parts Damaged . | . . . Bothacking | -11 -10 -10 ------------ Run | Scr Mat Min Used RIF Installer . | . . . Robots Hacked 3 | . 1 2 Non-combat 2 | . 1 1 Combat 1 | . . 1 Robot Hacks Applied 3 | . 1 2 parse_system 3 | . 1 2 Relay Couplers Released . | . . . Fabnet Peak Effective % . | . . . Robots Rewired . | . . . Allies Hacked . | . . . Hacks Repelled . | . . . Allies | -11 -10 -10 -------- Run | Scr Mat Min Total Allies . | . . . Largest Group . | . . . Highest-Rated Group . | . . . Highest-Rated Ally . | . . . Total Orders . | . . . Ally Attacks . | . . . Total Damage . | . . . Kills . | . . . Allies Corrupted . | . . . Allies Melted . | . . . Intel | -11 -10 -10 ------- Run | Scr Mat Min Robot Analysis Total 2 | . 2 . Derelict Logs Recovered 2 | . . 2 Drone Launches . | . . . Drone Recoveries . | . . . Exploration | -11 -10 -10 ------------- Run | Scr Mat Min Turns Passed 1645 | . 1403 242 Spaces Moved 939 | 1 806 132 Core . | . . . Treads 64 | . 64 . Legs 344 | 1 343 . Wheels 531 | . 399 132 Hover . | . . . Flight . | . . . Fastest Speed 120 | 120 120 130 Average Speed 145 | 120 147 130 Slowest Speed 190 | 120 190 130 Overloaded Moves . | . . . Propulsion Burnouts . | . . . Robots Hopped . | . . . Cave-ins Triggered . | . . . Exploration Rate (%) 44 | 2 99 32 Regions Visited 2 Branch Regions 1 Pre-discovered Areas 1 | . . 1 Known Exits Taken . | . . . Unknown Exits Taken 2 | 1 1 . Scrap Searched 1 | . . 1 Spaces Dug 26 | . 4 22 Terrain Destroyed 56 | . 12 44 Melee 4 | . 4 . Projectile . | . . . AOE 52 | . 8 44 Terrain Rammed . | . . . Walls Destroyed . | . . . Machines Disabled . | . . . Actions | -11 -10 -10 --------- Run | Scr Mat Min Total 1100 | . 921 179 Wait 40 | . 21 19 Move 937 | . 805 132 Hop . | . . . Pick Up 18 | . 18 . Fast Attach 5 | . 5 . Attach 6 | . . 6 Detach 2 | . 2 . Swap 17 | . 11 6 Drop 5 | . 5 . Fire 45 | . 38 7 Melee 24 | . 15 9 Ram . | . . . Kick 1 | . 1 . Crush . | . . . Escape Stasis . | . . . Rewire . | . . . Trap . | . . . Miscellaneous . | . . . Route ------- -11/Scrapyard -10/Materials (discovered 4 exits: [*Mat x3] / [*Min]) -10/Mines (discovered 1 exit: [*Mat]) History --------- Turn | Location | Event 1 | -11/Scrapyard | Discovered new exit (range 0) 1 | -11/Scrapyard | Entered Materials 175 | -10/Materials | Discovered new exit (range 10) 217 | -10/Materials | Central database locked down 327 | -10/Materials | Build established: Mutant 442 | -10/Materials | Discovered new exit (range 14) 847 | -10/Materials | Core integrity fell below 50% 952 | -10/Materials | Discovered new exit (range 7) 1186 | -10/Materials | Discovered new exit (range 11) 1404 | -10/Materials | Entered Mines 1404 | -10/Mines | Discovered new exit (range 15) 1418 | -10/Mines | Learned location of Zion (-7) 1492 | -10/Mines | Learned location of 1 exit from Materials 1527 | -10/Mines | Assembled infested the area 1532 | -10/Mines | Assisted by a Guerilla fighting off Assembled 1598 | -10/Mines | Core integrity fell below 20% 1598 | -10/Mines | System corruption reached 10% 1628 | -10/Mines | Lost 5 parts (1p2n2w) 1646 | -10/Mines | Destroyed by D-53 Grenadier with Mini Grenade Launcher Last Messages --------------- 01581_ Jacked as-18226... >>parse_system Reading system data... 01586_ as-18226 knocked back. 01588_ Ion Engine destroyed. 01588_ Com. Wheel destroyed. 01588_ System corrupted by crushing effect (+5). 01588_ System corrupted by crushing effect (+1). 01592_ Datajack destroyed. 01594_ Com. Wheel destroyed. 01594_ System corrupted by crushing effect (+1). 01595_ as-78880 destroyed. 01596_ W8X NNW> 01597_ Hammer destroyed. 01597_ System corrupted by crushing effect (+5). 01597_ as-18226 destroyed. 01607_ Acquired 13 matter. 01615_ I<|%ES5ZZ0LBA8HNNM&M: 01641_ System corrupted: Substantial component data lost. 01644_ Sml. Laser destroyed. Map ----- +----------------------------------------------------+ | ?????????????????????????????????????????????????? | | ?????????????????????????????????????????????????? | | ?????????????????????????????????????????????????? | | ????????????????????????????????????????????#????? | | ????????????????????????????????????????????# ??? | | ??????????????????????????????????????????## | | ?????????????????????????????????????????## | | ???????????????????????????????????????? | | ???????????????????????????????????????? | | ???????????????????????????????????????? | | ???????????????????????????????????????? | | ??????????????????????#??????????????????? # | | ??????????????????????# ????????????????????? # | | ?????????????????????## ?????????????????????? # | | ?????????????????????# ??????????????????????# # | | ????????????????????## ??????????????????????# # | | ???????????????????## dd#?????????????????????# # | | ???????????????????? ##??????????????????## # | | ????????????????????? ##????????????????## | | ????????????????????? < ##??????????????## | | ?????????????????????? #??????????????# | | ??????????????????????# ##????????####?# | | ?????????????????????## #??????### #?# ## | | ?????????????????????# #?###### ### #### | | ?????????????????????# ### ## ## #??# | | ????????????????????## @ #?# ! #??# | | ???????????????????## #?# =##?## | | ???????????????????# ### ! #??# | | ???????????????????# ## #??# | | ???????????????????## #### ##??? | | ????????????????????## #??#### ##??? | | ?????????????????????####### ##?????## ##?? | | ???????????????????????????## ####???????# #?? | | ????????????????????????????#####??????????# #? | | ???????????????????????????????????????????## #? | | ????????????????????????????????????????????## ##? | | ??????????????????????????????????????????????##?? | | ?????????????????????????????????????????????????? | | ?????????????????????????????????????????????????? | | ?????????????????????????????????????????????????? | | ?????????????????????????????????????????????????? | | ?????????????????????????????????????????????????? | | | | | | | | | | | | | | | | | +----------------------------------------------------+ Best States ------------- Heat Dissipation 25 Energy Generation 10 Energy Capacity 275 Matter Stores 450 Matter Capacity 450 Sight Range 16 Terrain Scan Density 10 Evasion (%) 55 Recoil Reduction 2 Item Schematics ----------------- None Robot Schematics ------------------ None Fabricated ------------ Nothing Alien Tech Used ----------------- None Achievements -------------- None Challenges ------------ None Game ------ Seed AlertCoolingSabre Manual? 0 Play Time 00:19:16 Cumulative 278.1 hours Start 2022.05.30 @ 16:12:07 End 2022.05.30 @ 21:29:38 Sessions 1 Manual Loads 0 Difficulty Rogue Special Mode None Game No. 365 Rogue 364 Adventurer 0 Explorer 1 Win Type - Total 6 Types 5/0/0/1/0/0/0/0/0 Lore% 68 Gallery% 79 Achievement% 58 Wizard Run 0 Options --------- ASCII 0 Keyboard 1 Movement Vi Keybinds 0 Fullscreen 1 Font 18/SmallcapsGlow Map View 76x50 Tactical HUD 1 Map Filters NONE Filters NONE Steam 1 RUN: 9988088f-f5e4-4e55-8f30-ffa45d75c7d8